bitfinex-derivatives/quotes_SOLF0:USTF0_20241224
["timestamp","ask_amount","ask_price","bid_price","bid_amount"]
[1735049166718,2.5642,195.21,195.16,2.5649]
[1735049167015,3.1801,195.38,195.19,2.5645]
[1735049167205,20.23589776,195.3,195.19,2.5645]
[1735049167909,2.5636,195.26,195.14,3.0169]
[1735049168109,20.23589776,195.3,195.14,3.0169]
[1735049169017,20.23589776,195.34,195.17,20.23589776]
[1735049169213,8.7529,195.38,195.18,5.9698]
[1735049169420,8.7529,195.38,195.2,20.23589776]
[1735049170121,2.5626,195.34,195.28,2.5633]
[1735049170522,3.1518,195.38,195.24,20.23589776]
[1735049170822,2.5623,195.36,195.29,2.5631]
[1735049171017,2.5623,195.36,195.25,3.0961]
[1735049171518,2.5626,195.34,195.25,3.0961]
[1735049171918,20.23589776,195.37,195.25,3.0961]
[1735049172117,23.33939776,195.37,195.2,20.23589776]
[1735049172323,20.23589776,195.34,195.19,3.0961]
[1735049172514,20.23589776,195.31,195.19,3.0961]
[1735049172716,2.5637,195.25,195.11,20.23589776]
[1735049172920,20.23589776,195.28,195.12,3.0961]
[1735049173117,2.5636,195.26,195.19,2.5644]
[1735049173323,2.5636,195.26,195.12,3.0961]
[1735049173524,20.23589776,195.28,195.13,0.94247474]
[1735049173824,2.5638,195.25,195.18,2.5645]
[1735049174122,3.1473,195.27,195.12,3.0961]
[1735049174326,3.1473,195.27,195.14,20.23589776]
[1735049174622,20.23589776,195.34,195.17,20.23589776]
[1735049175220,2.5631,195.31,195.23,2.5638]
[1735049175423,20.23589776,195.34,195.17,20.23589776]
[1735049175624,20.23589776,195.34,195.18,0.94231829]
[1735049175825,2.5631,195.31,195.24,2.5637]
[1735049176022,2.5631,195.31,195.17,20.23589776]
[1735049176222,2.5631,195.31,195.18,0.94226334]
[1735049176418,20.23589776,195.34,195.18,0.94226334]
[1735049176624,20.23589776,195.34,195.17,20.23589776]
[1735049176625,20.23589776,195.37,195.2,20.23589776]
[1735049176824,20.23589776,195.37,195.21,3.2676]
[1735049177433,20.23589776,195.37,195.22,0.94216268]
[1735049177634,6.1576,195.38,195.23,20.23589776]
[1735049177934,6.1576,195.38,195.32,2.5628]
[1735049178331,8.7197,195.38,195.32,2.5628]
[1735049178531,6.1576,195.38,195.3,2.563]
[1735049179134,6.1576,195.38,195.23,20.23589776]
[1735049179334,6.1576,195.38,195.31,2.5628]
[1735049179733,2.5623,195.37,195.31,2.5628]
[1735049180430,6.1576,195.38,195.27,2.5634]
[1735049180637,20.23589776,195.37,195.27,2.5634]
[1735049181136,2.5625,195.34,195.27,2.5634]
[1735049181434,20.23589776,195.37,195.21,3.2676]
[1735049181636,20.23589776,195.34,195.21,3.2676]
[1735049181833,20.23589776,195.34,195.22,0.94219209]
[1735049182426,6.1576,195.38,195.22,0.94219209]
[1735049182427,20.23589776,195.3,195.22,0.94219209]
[1735049182634,2.3431,195.29,195.22,0.94219209]
[1735049182835,4.5956,195.29,195.22,0.94219209]
[1735049183136,20.23589776,195.27,195.22,0.94219209]
[1735049183638,2.564,195.23,195.22,0.94219209]
[1735049184035,20.23589776,195.27,195.17,2.5647]
[1735049184235,2.5644,195.2,195.13,1.4859]
[1735049184636,20.23589776,195.24,195.13,1.4859]
[1735049184936,2.5643,195.21,195.16,2.5649]
[1735049185438,20.23589776,195.24,195.13,1.4859]
[1735049185638,2.5644,195.2,195.15,2.565]
[1735049185939,20.23589776,195.24,195.13,1.4859]
[1735049186339,2.5643,195.21,195.16,2.5649]
[1735049187041,20.23589776,195.24,195.13,1.4859]
[1735049187241,4.5956,195.29,195.17,2.5648]
[1735049187442,4.5956,195.29,195.13,1.4859]
[1735049187644,4.5956,195.29,195.14,0.94247524]
[1735049187841,4.5956,195.29,195.18,2.5646]
[1735049188348,2.5637,195.25,195.17,2.5647]
[1735049188547,4.5956,195.29,195.13,1.4859]
[1735049189541,4.5956,195.29,195.15,20.23589776]
[1735049189734,4.5956,195.29,195.16,0.94249584]
[1735049189936,2.5637,195.25,195.2,2.5643]
[1735049190142,24.83149776,195.29,195.13,1.4859]
[1735049190340,20.23589776,195.26,195.13,1.4859]
[1735049190647,2.5642,195.21,195.15,2.5649]
[1735049191247,20.23589776,195.26,195.09,22.47389776]
[1735049191543,2.5646,195.18,195.1,0.94259179]
[1735049191747,20.23589776,195.22,195.05,20.23589776]
[1735049192048,2.5652,195.14,195.06,0.94279]
[1735049192248,2.3634,195.17,195.04,4.0244]
[1735049192447,2.5654,195.13,195.07,2.5661]
[1735049192845,2.3634,195.17,195.04,4.0244]
[1735049193045,2.5656,195.11,195.05,2.5662]
[1735049193351,2.5656,195.11,195.04,4.0244]
[1735049193944,2.3634,195.17,195.04,4.0244]
[1735049194248,20.23589776,195.13,194.96,20.23589776]
[1735049194449,20.23589776,195.1,194.97,0.94308605]
[1735049194745,20.23589776,195.1,194.94,55.55286491]
[1735049194948,20.23589776,195.1,194.95,0.94342436]
[1735049195540,20.23589776,195.1,194.94,55.55286491]
[1735049195745,2.5667,195.03,194.96,2.5675]
[1735049196145,2.5679,195.06,194.93,24.34179776]
[1735049196347,2.5679,195.06,195.01,2.5669]
[1735049196748,2.5679,195.06,194.93,24.34179776]
[1735049196950,2.5679,195.06,194.94,0.94339184]
[1735049197352,20.23589776,195.13,194.96,20.23589776]
[1735049197949,20.23589776,195.13,194.97,0.9432642]
[1735049198145,20.23589776,195.13,194.96,20.23589776]
[1735049198342,20.23589776,195.13,194.97,0.94325829]
[1735049198555,2.566,195.08,195.02,2.5667]
[1735049198948,2.5661,195.07,195.02,2.5667]
[1735049199652,2.5662,195.06,195.01,2.5669]
[1735049200043,20.23589776,195.13,195.01,2.5669]
[1735049200241,20.23589776,195.13,194.85,83.32929737]
[1735049200445,20.23589776,195.0,194.86,1.5118]
[1735049200649,20.23589776,195.0,194.85,83.32929737]
[1735049200650,2.5685,194.89,194.85,83.32929737]
[1735049200845,2.5685,194.89,194.87,51.67166491]
[1735049201048,2.5685,194.89,194.87,47.77196491]
[1735049201245,20.23589776,194.91,194.78,6.1725]
[1735049201953,20.23589776,194.95,194.78,26.40839776]
[1735049202149,1.5945,194.99,194.78,26.40839776]
[1735049202454,20.23589776,194.96,194.79,0.94411685]
[1735049203045,2.5681,194.92,194.84,2.5691]
[1735049203251,20.23589776,194.92,194.78,6.1725]
[1735049203645,20.23589776,194.92,194.74,20.23589776]
[1735049204048,20.23589776,194.92,194.81,2.5695]
[1735049204252,20.23589776,194.92,194.74,20.23589776]
[1735049204447,20.23589776,194.92,194.75,0.94422517]
[1735049204954,2.5684,194.9,194.75,0.94422517]
[1735049205356,2.5684,194.9,194.74,20.23589776]
[1735049205555,2.5684,194.9,194.75,0.94425779]
[1735049205950,2.5684,194.9,194.79,2.5697]
[1735049206157,2.5684,194.9,194.74,20.23589776]
[1735049206452,20.23589776,194.92,194.83,2.5692]
[1735049206654,22.80399776,194.92,194.83,2.5692]
[1735049206857,22.80399776,194.92,194.74,20.23589776]
[1735049207052,20.23589776,194.92,194.75,0.94422104]
[1735049207453,2.5685,194.89,194.82,2.5693]
[1735049208352,2.5683,194.91,194.74,20.23589776]
[1735049208659,20.23589776,194.96,194.78,20.23589776]
[1735049208852,20.23589776,194.96,194.79,4.12066575]
[1735049209060,20.23589776,194.96,194.8,0.94416575]
[1735049209256,20.23589776,194.96,194.79,3.1765]
[1735049209457,2.5681,194.93,194.86,2.5688]
[1735049209852,2.5681,194.93,194.79,3.1765]
[1735049210158,2.5681,194.93,194.8,0.94405263]
[1735049210457,2.5677,194.95,194.88,2.5685]
[1735049211458,20.23589776,194.96,194.79,3.1765]
[1735049211662,2.5682,194.91,194.85,2.569]
[1735049212058,2.5682,194.91,194.81,1.5519]
[1735049212258,20.23589776,194.96,194.86,2.5688]
[1735049212449,20.23589776,194.96,194.81,1.5519]
[1735049212753,20.23589776,194.92,194.81,1.5519]
[1735049212955,2.5687,194.88,194.82,2.5693]
[1735049213155,20.23589776,194.92,194.79,1.6279]
[1735049214159,2.569,194.85,194.8,2.5696]
[1735049214367,2.569,194.85,194.75,3.0482]
[1735049214663,2.569,194.85,194.78,2.5699]
[1735049215051,2.569,194.85,194.75,4.6543]
[1735049215256,2.569,194.85,194.78,2.5699]
[1735049215459,20.23589776,194.88,194.75,4.6543]
[1735049216464,2.5693,194.83,194.77,2.57]
[1735049216964,2.5694,194.82,194.77,2.57]
[1735049217366,2.5694,194.82,194.75,3.1531]
[1735049217564,20.23589776,194.82,194.71,1.5782]
[1735049218465,2.57,194.78,194.73,2.5706]
[1735049219170,2.57,194.78,194.71,4.1489]
[1735049219469,20.23589776,194.82,194.64,23.47409776]
[1735049219673,20.23589776,194.79,194.65,2.44834921]
[1735049219875,20.23589776,194.79,194.66,0.94464921]
[1735049220171,2.5702,194.76,194.66,0.94464921]
[1735049220362,20.23589776,194.79,194.66,0.94464921]
[1735049220563,2.5703,194.75,194.7,2.5709]
[1735049220964,20.23589776,194.79,194.7,2.5709]
[1735049221566,2.5702,194.76,194.65,1.5037]
[1735049221870,2.5702,194.76,194.71,2.5708]
[1735049222372,2.5703,194.75,194.7,2.5709]
[1735049222572,20.23589776,194.79,194.65,1.5037]
[1735049222768,20.23589776,194.75,194.64,3.2382]
[1735049222968,20.23589776,194.75,194.58,1.5077]
[1735049223168,20.23589776,194.72,194.59,0.9450299]
[1735049223375,20.23589776,194.72,194.6,0.9450299]
[1735049223673,20.23589776,194.75,194.65,2.5716]
[1735049224268,20.23589776,194.75,194.63,2.5718]
[1735049224470,20.23589776,194.72,194.58,4.7059]
[1735049224774,2.5719,194.64,194.59,3.51746396]
[1735049224968,20.23589776,194.69,194.58,4.7059]
[1735049225770,2.5716,194.65,194.61,2.5721]
[1735049226673,2.5716,194.65,194.58,4.7059]
[1735049226977,2.5716,194.65,194.6,2.5723]
[1735049227176,2.5719,194.63,194.58,3.1982]
[1735049227373,20.23589776,194.66,194.52,3.0586]
[1735049227570,20.23589776,194.63,194.53,0.94543467]
[1735049227774,2.5723,194.6,194.53,0.94543467]
[1735049227976,20.23589776,194.63,194.56,2.5727]
[1735049228172,20.23589776,194.66,194.56,2.5727]
[1735049228471,2.5721,194.62,194.56,2.5727]
[1735049228974,20.23589776,194.66,194.49,20.23589776]
[1735049229275,20.23589776,194.69,194.52,20.23589776]
[1735049229578,20.23589776,194.69,194.53,0.94556641]
[1735049229877,20.23589776,194.72,194.55,20.23589776]
[1735049230065,20.23589776,194.72,194.56,0.94556641]
[1735049230271,20.23589776,194.66,194.56,0.94556641]
[1735049230475,20.23589776,194.66,194.49,20.23589776]
[1735049230773,20.23589776,194.66,194.5,0.94551955]
[1735049230977,20.23589776,194.66,194.51,0.94554474]
[1735049231172,20.23589776,194.66,194.52,0.94554474]
[1735049231480,20.23589776,194.66,194.53,0.94554474]
[1735049231771,20.23589776,194.66,194.54,0.94554474]
[1735049231975,20.23589776,194.66,194.55,0.94554474]
[1735049232180,2.5719,194.63,194.58,2.5725]
[1735049232573,20.23589776,194.66,194.49,20.23589776]
[1735049232778,2.572,194.62,194.5,0.94551854]
[1735049232974,2.572,194.62,194.51,0.94554818]
[1735049233180,2.572,194.62,194.52,0.94554818]
[1735049233384,20.23589776,194.66,194.53,0.94554818]
[1735049233690,20.23589776,194.66,194.48,3.0763]
[1735049233881,2.5727,194.57,194.49,0.94557412]
[1735049234081,20.23589776,194.63,194.49,0.94557412]
[1735049234877,20.23589776,194.63,194.5,0.94557412]
[1735049235081,20.23589776,194.63,194.51,0.94557412]
[1735049235282,20.23589776,194.63,194.54,2.573]
[1735049235283,2.5725,194.59,194.54,2.573]
[1735049236082,20.23589776,194.63,194.51,2.5734]
[1735049236584,2.5727,194.57,194.52,2.5733]
[1735049237387,20.23589776,194.54,194.38,20.23589776]
[1735049237682,20.23589776,194.54,194.39,4.02504556]
[1735049237882,20.23589776,194.54,194.4,0.94594556]
[1735049238478,2.5739,194.48,194.43,2.5744]
[1735049239184,2.5739,194.48,194.39,3.0791]
[1735049239387,2.5739,194.48,194.4,0.94613729]
[1735049239683,2.5739,194.48,194.41,0.94613729]
[1735049239874,2.5739,194.48,194.42,0.94613729]
[1735049240080,2.5739,194.48,194.4,0.94613729]
[1735049240276,2.5739,194.48,194.41,0.94609527]
[1735049240482,2.5739,194.48,194.42,0.94609527]
[1735049240785,2.5737,194.5,194.45,2.5742]
[1735049241079,20.23589776,194.54,194.39,3.0791]
[1735049241384,20.23589776,194.54,194.4,0.94609664]
[1735049241585,20.23589776,194.54,194.45,2.5742]
[1735049241782,20.23589776,194.54,194.39,3.0791]
[1735049242383,20.23589776,194.54,194.4,0.94606548]
[1735049242585,20.23589776,194.54,194.41,0.94606548]
[1735049242780,20.23589776,194.57,194.42,0.94606548]
[1735049242977,20.23589776,194.57,194.43,0.94606548]
[1735049243177,2.5732,194.54,194.49,2.5736]
[1735049243487,20.23589776,194.6,194.44,20.23589776]
[1735049243785,20.23589776,194.6,194.45,0.94578632]
[1735049243984,20.23589776,194.57,194.46,0.94578632]
[1735049244179,20.23589776,194.57,194.47,0.94580732]
[1735049244380,20.23589776,194.54,194.39,3.0791]
[1735049244584,2.5735,194.51,194.4,0.94592612]
[1735049244785,2.5735,194.51,194.41,0.94592612]
[1735049244984,20.23589776,194.57,194.42,0.94592612]
[1735049245186,2.5731,194.54,194.49,2.5737]
[1735049245489,2.5731,194.54,194.41,20.23589776]
[1735049245684,2.5731,194.54,194.42,0.94579911]
[1735049245884,2.5731,194.54,194.43,0.94579911]
[1735049246085,2.5731,194.54,194.44,0.94579911]
[1735049246381,2.5731,194.54,194.45,0.94579911]
[1735049246587,2.5731,194.54,194.5,2.5736]
[1735049247291,2.573,194.55,194.5,2.5736]
[1735049248086,20.23589776,194.54,194.39,3.0791]
[1735049248285,20.23589776,194.54,194.4,0.94594858]
[1735049248488,20.23589776,194.54,194.41,0.94594858]
[1735049248694,20.23589776,194.54,194.42,0.94594858]
[1735049248883,20.23589776,194.54,194.43,0.94594858]
[1735049249085,20.23589776,194.54,194.39,3.0791]
[1735049249383,20.23589776,194.51,194.46,2.5741]
[1735049249889,20.23589776,194.54,194.39,3.0791]
[1735049250189,20.23589776,194.54,194.4,0.94595502]
[1735049250389,20.23589776,194.54,194.41,0.94595502]
[1735049250592,2.5734,194.52,194.48,2.5738]
[1735049251092,22.80899776,194.54,194.49,2.5737]
[1735049251285,20.23589776,194.54,194.49,2.5737]
[1735049251991,2.5736,194.5,194.45,2.5742]
[1735049252196,2.5736,194.5,194.39,3.0791]
[1735049252493,2.5736,194.5,194.4,0.9460145]
[1735049252788,2.5736,194.5,194.41,0.9460145]
[1735049252988,2.5736,194.5,194.42,0.9460145]
[1735049253189,2.5736,194.5,194.39,3.0791]
[1735049253190,2.5735,194.51,194.39,3.0791]
[1735049253390,2.5735,194.51,194.4,0.94604663]
[1735049253782,2.5733,194.52,194.47,2.5739]
[1735049253991,20.23589776,194.54,194.39,3.0791]
[1735049254195,20.23589776,194.54,194.4,0.94601787]
[1735049254389,22.80909776,194.54,194.49,2.5737]
[1735049254690,20.23589776,194.54,194.49,2.5737]
[1735049255190,20.23589776,194.54,194.39,3.0791]
[1735049255191,20.23589776,194.51,194.39,3.0791]
[1735049255385,20.23589776,194.51,194.4,0.9460094]
[1735049255796,2.574,194.47,194.42,2.5745]
[1735049259687,20.23589776,194.45,194.4,2.5748]
[1735049259887,20.23589776,194.45,194.39,1.5666]
[1735049260193,2.5748,194.41,194.32,1.5919]
[1735049260392,2.5748,194.41,194.36,2.5754]
[1735049260589,20.23589776,194.42,194.33,1.6233]
[1735049260789,20.23589776,194.42,194.38,2.5752]
[1735049261887,20.23589776,194.42,194.33,1.6233]
[1735049262090,20.23589776,194.42,194.34,0.94637154]
[1735049262294,20.23589776,194.42,194.39,2.575]
[1735049263094,20.23589776,194.42,194.36,2.5754]
[1735049263699,2.5748,194.41,194.36,2.5754]
[1735049263899,20.23589776,194.42,194.37,2.5752]
[1735049264199,20.23589776,194.42,194.33,1.6233]
[1735049264401,20.23589776,194.42,194.37,2.5753]
[1735049264697,20.23589776,194.42,194.33,1.6233]
[1735049265099,20.23589776,194.42,194.38,2.5752]
[1735049265299,20.23589776,194.42,194.33,1.6233]
[1735049265499,7.11842141,194.61,194.43,2.5745]
[1735049265801,20.23589776,194.49,194.33,1.6233]
[1735049266001,20.23589776,194.49,194.45,2.5742]
[1735049266501,22.80879776,194.56,194.4,20.23589776]
[1735049266694,22.80879776,194.56,194.5,2.5735]
[1735049266891,20.23589776,194.56,194.41,3.1465]
[1735049267098,20.23589776,194.53,194.42,2.47483837]
[1735049267298,20.23589776,194.5,194.42,1.5289]
[1735049268091,2.5739,194.48,194.43,2.5745]
[1735049268294,20.23589776,194.5,194.42,1.5289]
[1735049268697,22.80959776,194.5,194.45,2.5742]
[1735049268896,20.23589776,194.53,194.42,1.5289]
[1735049270000,2.5734,194.52,194.46,2.574]
[1735049270196,20.23589776,194.53,194.46,2.574]
[1735049270699,22.80909776,194.53,194.48,2.5739]
[1735049271595,22.80909776,194.53,194.42,1.5289]
[1735049271596,20.23589776,194.53,194.42,1.5289]
[1735049271992,20.23589776,194.56,194.42,1.5289]
[1735049272202,2.573,194.55,194.5,2.5736]
[1735049272498,20.23589776,194.56,194.42,1.5289]
[1735049272893,2.5729,194.55,194.5,2.5736]
[1735049273090,20.23589776,194.56,194.42,1.5289]
[1735049273303,20.23589776,194.62,194.44,20.23589776]
[1735049273496,20.23589776,194.62,194.49,2.5737]
[1735049273497,2.5723,194.61,194.49,2.5737]
[1735049273698,20.23589776,194.62,194.5,3.1278]
[1735049273893,20.23589776,194.59,194.5,3.1278]
[1735049274197,20.23589776,194.62,194.5,3.1278]
[1735049274598,20.23589776,194.62,194.51,1.5146]
[1735049274796,20.23589776,194.65,194.51,1.5146]
[1735049274995,2.5715,194.67,194.51,1.5146]
[1735049275196,20.23589776,194.68,194.51,1.5146]
[1735049275503,2.5718,194.64,194.59,2.5723]
[1735049275708,20.23589776,194.68,194.51,1.5146]
[1735049276105,2.5716,194.66,194.61,2.5721]
[1735049276307,20.23589776,194.74,194.56,20.23589776]
[1735049276803,20.23589776,194.74,194.59,20.23589776]
[1735049277008,20.23589776,194.77,194.62,20.23589776]
[1735049277209,20.23589776,194.77,194.63,1.5146]
[1735049278001,28.47368564,194.86,194.66,20.23589776]
[1735049278205,20.23589776,194.84,194.66,20.23589776]
[1735049278608,20.23589776,194.81,194.63,21.75049776]
[1735049279315,2.5698,194.8,194.63,21.75049776]
[1735049279816,2.5698,194.8,194.74,2.5704]
[1735049280514,2.5695,194.82,194.74,2.5704]
[1735049280714,20.23589776,194.84,194.66,20.23589776]
[1735049281009,20.23589776,194.84,194.67,0.94453846]
[1735049281010,22.80509776,194.84,194.67,0.94453846]
[1735049281213,22.80509776,194.84,194.76,2.57]
[1735049281410,20.23589776,194.81,194.66,20.23589776]
[1735049281611,2.5697,194.8,194.67,3.58]
[1735049283216,20.23589776,194.81,194.67,3.58]
[1735049285015,3.58,194.82,194.67,3.58]
[1735049285418,3.58,194.82,194.77,2.57]
[1735049287114,20.23589776,194.84,194.75,2.5702]
[1735049287316,20.23589776,194.84,194.7,3.58]
[1735049287513,53.48,194.95,194.72,20.23589776]
[1735049287720,2.5686,194.89,194.73,2.49470978]
[1735049287910,2.5686,194.89,194.73,1.5503]
[1735049288109,20.23589776,194.88,194.73,1.5503]
[1735049288814,22.80449776,194.88,194.81,2.5694]
[1735049289116,3.58,194.94,194.78,23.81589776]
[1735049289313,23.81589776,194.95,194.79,3.58]
[1735049289511,23.81589776,194.95,194.8,1.5177]
[1735049289910,20.23589776,194.91,194.8,1.5177]
[1735049290114,20.23589776,194.87,194.75,3.58]
[1735049290417,23.81589776,194.87,194.75,3.58]
[1735049290621,2.5691,194.85,194.79,2.5697]
[1735049290917,2.5691,194.85,194.75,3.58]
[1735049291516,26.38469776,194.87,194.75,3.58]
[1735049292015,2.5689,194.86,194.75,3.58]
[1735049292219,23.81589776,194.87,194.75,3.58]
[1735049292718,23.81589776,194.87,194.81,2.5694]
[1735049293122,3.58,194.87,194.75,3.58]
[1735049293515,3.8,194.92,194.76,20.23589776]
[1735049293917,2.5682,194.91,194.81,2.5695]
[1735049294118,3.8,194.92,194.76,20.23589776]
[1735049294320,3.8,194.92,194.77,0.9442372]
[1735049294517,3.8,194.92,194.87,2.5686]
[1735049294822,3.8,194.92,194.76,20.23589776]
[1735049295020,3.8,194.92,194.77,0.94422746]
[1735049295421,3.8,194.92,194.88,2.5685]
[1735049295615,22.80369776,194.94,194.88,2.5685]
[1735049296015,2.568,194.93,194.88,2.5685]
[1735049296619,2.568,194.93,194.82,3.0983]
[1735049296819,20.23589776,194.94,194.82,3.0983]
[1735049297509,2.5679,194.93,194.82,1.5215]
[1735049297716,20.23589776,194.91,194.75,21.81269776]
[1735049297912,2.569,194.85,194.78,2.5698]
[1735049298115,24.03589776,194.88,194.75,3.0983]
[1735049298714,2.569,194.85,194.8,2.5696]
[1735049298921,2.569,194.85,194.75,3.0983]
[1735049299116,2.5694,194.83,194.77,2.57]
[1735049299319,24.03589776,194.88,194.77,2.57]
[1735049299617,2.5697,194.8,194.73,2.5705]
[1735049299924,24.03589776,194.82,194.69,4.8011]
[1735049300123,3.8,194.81,194.69,4.8011]
[1735049300522,3.8,194.81,194.7,0.9445601]
[1735049301026,3.8,194.81,194.78,2.5698]
[1735049301217,3.8,194.81,194.69,25.03699776]
[1735049301620,2.5697,194.8,194.69,4.8011]
[1735049302017,3.8,194.81,194.69,4.8011]
[1735049302224,3.8,194.81,194.78,2.5699]
[1735049302527,3.8,194.81,194.7,1.88921671]
[1735049302723,3.8,194.81,194.8,2.5696]
[1735049302924,3.8,194.81,194.7,1.88921671]
[1735049303123,3.8,194.81,194.71,0.94451815]
[1735049303327,20.23589776,194.85,194.7,1.88921671]
[1735049303526,3.8,194.84,194.7,1.88921671]
[1735049303727,20.23589776,194.82,194.7,1.88921671]
[1735049304826,20.23589776,194.82,194.75,2.5703]
[1735049305021,20.23589776,194.82,194.7,1.88921671]
[1735049305224,3.8,194.84,194.7,5.68921671]
[1735049305421,3.8,194.84,194.72,20.23589776]
[1735049305923,3.8,194.84,194.79,2.5697]
[1735049306120,2.569,194.85,194.72,20.23589776]
[1735049306327,2.569,194.85,194.79,2.5697]
[1735049307630,2.569,194.85,194.8,2.5696]
[1735049307825,6.5888,194.87,194.72,20.23589776]
[1735049308130,4.02,194.87,194.81,2.5695]
[1735049308521,4.02,194.87,194.72,20.23589776]
[1735049308727,4.02,194.87,194.75,20.23589776]
[1735049308930,20.23589776,194.91,194.76,0.94436056]
[1735049309124,4.02,194.92,194.86,2.5688]
[1735049310231,6.5882,194.92,194.86,2.5688]
[1735049311023,2.5683,194.91,194.86,2.5688]
[1735049311232,4.02,194.92,194.79,4.743]
[1735049311832,20.23589776,194.91,194.79,3.1447]
[1735049312031,20.23589776,194.88,194.74,56.3917231]
[1735049312225,20.23589776,194.88,194.74,59.5937231]
[1735049312530,2.5687,194.87,194.75,0.94440198]
[1735049312730,20.23589776,194.88,194.74,59.5937231]
[1735049312931,20.23589776,194.88,194.74,4.7162]
[1735049313231,20.23589776,194.88,194.81,2.5694]
[1735049313232,2.5689,194.86,194.81,2.5694]
[1735049313729,22.80459776,194.88,194.82,2.5694]
[1735049313929,20.23589776,194.88,194.82,2.5694]
[1735049314425,20.23589776,194.88,194.74,4.7162]
[1735049315032,20.23589776,194.85,194.74,3.202]
[1735049315232,20.23589776,194.82,194.7,54.8775231]
[1735049315635,2.5698,194.79,194.74,2.5704]
[1735049317337,2.5702,194.76,194.7,2.5708]
[1735049317838,6.59,194.78,194.73,2.5706]
[1735049318138,20.23589776,194.82,194.68,4.6042]
[1735049318335,4.02,194.81,194.69,20.23589776]
[1735049318534,4.02,194.81,194.76,2.5701]
[1735049321237,4.02,194.81,194.69,20.23589776]
[1735049321445,4.02,194.86,194.72,20.23589776]
[1735049321735,4.02,194.89,194.75,20.23589776]
[1735049322035,2.5686,194.88,194.76,1.6273]
[1735049322638,2.5686,194.88,194.77,3.1538]
[1735049322834,20.23589776,194.91,194.77,3.1538]
[1735049323036,2.5683,194.9,194.78,20.23589776]
[1735049323235,24.25589776,194.94,194.78,20.23589776]
[1735049323636,2.5681,194.92,194.86,2.5688]
[1735049323933,2.5681,194.92,194.78,20.23589776]
[1735049324138,2.5681,194.92,194.79,4.02]
[1735049325537,2.5681,194.92,194.87,2.5687]
[1735049327144,4.02,194.96,194.79,4.02]
[1735049327446,20.23589776,194.94,194.78,20.23589776]
[1735049327941,2.5683,194.9,194.84,2.5691]
[1735049328536,2.5688,194.87,194.82,2.5692]
[1735049328743,2.5688,194.87,194.77,3.1538]
[1735049328934,4.02,194.89,194.77,3.1538]
[1735049329134,2.569,194.86,194.77,3.1538]
[1735049329344,20.23589776,194.88,194.77,3.1538]
[1735049330443,2.5691,194.85,194.79,2.5698]
[1735049330840,20.23589776,194.85,194.72,4.02]
[1735049331033,2.5697,194.8,194.71,3.1432]
[1735049331235,20.23589776,194.85,194.71,3.1432]
[1735049331236,4.02,194.82,194.71,3.1432]
[1735049331636,4.02,194.87,194.72,20.23589776]
[1735049332937,4.02,194.87,194.72,75.11342086]
[1735049333646,2.569,194.85,194.79,2.5697]
[1735049333847,2.569,194.85,194.72,20.23589776]
[1735049334047,4.02,194.87,194.81,2.5694]
[1735049334048,6.5888,194.87,194.81,2.5694]
[1735049336050,2.5689,194.86,194.81,2.5694]
[1735049336949,2.5691,194.85,194.79,2.5697]
[1735049337849,2.5686,194.88,194.83,2.5692]
[1735049338049,4.18,194.91,194.74,4.02]
[1735049338245,12.65967003,194.89,194.76,12.65967003]
[1735049338446,2.5688,194.87,194.77,1.4838]
[1735049338850,2.5688,194.87,194.8,2.5696]
[1735049339050,12.65967003,194.89,194.77,1.4838]
[1735049339441,12.65967003,194.89,194.79,2.5696]
[1735049339752,2.5691,194.85,194.77,1.4838]
[1735049340051,2.5691,194.85,194.8,2.5696]
[1735049340255,2.5687,194.88,194.77,1.4838]
[1735049340455,12.65967003,194.89,194.81,2.5694]
[1735049340641,12.65967003,194.89,194.77,1.4838]
[1735049340951,2.5691,194.85,194.8,2.5695]
[1735049341744,2.5696,194.81,194.76,2.5701]
[1735049341949,7.00491304,194.98,194.72,1.6362]
[1735049341950,12.65967003,194.83,194.72,1.6362]
[1735049342141,16.83967003,194.83,194.72,1.6362]
[1735049342343,19.40897003,194.83,194.78,2.5699]
[1735049342550,6.7493,194.83,194.78,2.5699]